bitfinex/quotes_ETHUSD_20230117
["timestamp","ask_amount","ask_price","bid_price","bid_amount"]
[1673988405405,0.93995777,1585.6,1585.4,18.24970713]
[1673988405675,2.42255822,1585.7,1585.4,30.86480713]
[1673988405885,2.35655822,1585.7,1585.4,30.86480713]
[1673988406432,0.93995777,1585.6,1585.4,30.86480713]
[1673988406575,2.34875414,1585.6,1585.4,24.55725713]
[1673988407149,0.93995777,1585.5,1585.4,24.55725713]
[1673988407308,2.34875414,1585.6,1585.4,24.55725713]
[1673988407510,0.93995777,1585.5,1585.4,24.55725713]
[1673988408305,2.34875414,1585.5,1585.4,11.94233713]
[1673988408489,0.93995777,1585.5,1585.4,11.94233713]
[1673988409734,2.34875414,1585.6,1585.4,11.94233713]
[1673988409941,0.93995777,1585.5,1585.4,11.94233713]
[1673988411031,0.93995777,1585.6,1585.4,30.86498713]
[1673988412438,2.34875414,1585.6,1585.4,18.24988713]
[1673988413089,2.35453117,1585.6,1585.4,18.24988713]
[1673988413535,0.9457348,1585.6,1585.4,18.24988713]
[1673988413746,0.9457348,1585.6,1585.4,24.55743713]
[1673988414213,0.9457348,1585.6,1585.4,18.24988713]
[1673988414585,0.9457348,1585.6,1585.4,30.86498713]
[1673988416872,0.9457348,1585.6,1585.4,24.55743713]
[1673988417455,0.93995777,1585.5,1585.4,24.55743713]
[1673988417668,2.35453117,1585.6,1585.4,24.55743713]
[1673988418075,0.00577703,1585.6,1585.5,23.34322457]
[1673988418284,0.00577703,1585.6,1585.5,25.59269023]
[1673988418756,0.00577703,1585.6,1585.5,23.4051617]
[1673988419759,0.00577703,1585.6,1585.5,25.5923301]
[1673988420172,0.00577703,1585.6,1585.5,26.53380786]
[1673988421682,0.00577703,1585.6,1585.5,25.5923301]
[1673988422130,0.00577703,1585.6,1585.5,26.53380786]
[1673988422273,0.00577703,1585.6,1585.5,29.53380786]
[1673988422487,0.00577703,1585.6,1585.5,28.5923301]
[1673988426743,0.00577703,1585.6,1585.5,29.53380786]
[1673988429490,0.00577703,1585.6,1585.5,37.97420786]
[1673988429843,0.00577703,1585.6,1585.5,36.54420786]
[1673988430257,0.00577703,1585.6,1585.5,35.6027301]
[1673988431684,0.00577703,1585.6,1585.5,24.11663713]
[1673988431903,0.97877703,1585.6,1585.5,0.06193713]
[1673988432063,0.97877703,1585.6,1585.4,30.86481713]
[1673988432415,0.97877703,1585.6,1585.4,18.24971713]
[1673988432573,0.97877703,1585.6,1585.4,24.55726713]
[1673988433479,0.97877703,1585.6,1585.4,24.55364752]
[1673988434060,0.00577703,1585.6,1585.4,24.55364752]
[1673988436280,0.00577703,1585.6,1585.5,1.43]
[1673988436475,0.00577703,1585.6,1585.5,4.43]
[1673988436685,0.00577703,1585.6,1585.5,23.35145]
[1673988436946,0.00577703,1585.6,1585.5,27.16372428]
[1673988438603,0.00577703,1585.6,1585.5,24.97807031]
[1673988439185,0.00577703,1585.6,1585.5,27.16362862]
[1673988442314,0.00577703,1585.6,1585.5,27.16326734]
[1673988442533,0.00577703,1585.6,1585.5,35.58116734]
[1673988443589,0.00186504,1585.6,1585.5,35.58116734]
[1673988443751,0.00186504,1585.6,1585.5,38.41937375]
[1673988444340,0.00186504,1585.6,1585.5,40.3029528]
[1673988444487,0.00186504,1585.6,1585.5,38.41937375]
[1673988444765,0.066,1586.0,1585.6,1.00161643]
[1673988444914,2.39401007,1586.2,1585.9,1.43]
[1673988444915,0.9852137,1586.2,1585.9,1.43]
[1673988445239,0.9852137,1586.2,1586.0,18.91551]
[1673988445459,0.9852137,1586.2,1586.0,18.97744713]
[1673988446535,0.04525593,1586.2,1586.0,20.40744713]
[1673988447484,0.04525593,1586.2,1586.1,21.91431]
[1673988447639,0.04525593,1586.2,1586.1,21.97624713]
[1673988450669,0.04525593,1586.2,1586.1,18.97624713]
[1673988451156,0.04525593,1586.2,1586.1,21.97624713]
[1673988451330,0.04525593,1586.2,1586.1,24.82624713]
[1673988457660,0.04525593,1586.2,1586.1,10.78670713]
[1673988457800,0.04525593,1586.2,1586.1,3.06193713]
[1673988458015,0.04525593,1586.2,1586.1,3.0]
[1673988458709,0.04525593,1586.2,1586.1,21.91431]
[1673988458928,0.04525593,1586.2,1586.1,21.97624713]
[1673988459077,0.04525593,1586.2,1586.1,23.39624713]
[1673988459492,0.04525593,1586.2,1586.1,15.67147713]
[1673988461202,0.04525593,1586.2,1586.1,21.97624713]
[1673988462215,1.03825593,1586.2,1586.1,15.67147713]
[1673988462427,1.01825593,1586.2,1586.1,0.06193713]
[1673988462647,0.04525593,1586.2,1586.0,14.21146713]
[1673988463322,0.04525593,1586.2,1586.0,20.51663713]
[1673988463909,0.04525593,1586.2,1586.0,14.21146713]
[1673988464172,0.04525593,1586.2,1586.0,7.90663713]
[1673988464540,6.34965593,1586.2,1586.0,7.90663713]
[1673988464788,6.34965593,1586.2,1586.0,0.06193713]
[1673988464789,6.41565593,1586.2,1586.0,0.06193713]
[1673988465007,6.41565593,1586.2,1585.9,9.36727713]
[1673988466049,6.41565593,1586.2,1585.9,6.36727713]
[1673988466434,6.41565593,1586.2,1585.9,6.36331861]
[1673988466952,7.3556137,1586.2,1585.9,6.36331861]
[1673988467369,6.41565593,1586.2,1585.9,6.36331861]
[1673988467972,7.3556137,1586.2,1585.9,6.36331861]
[1673988469114,6.41565593,1586.2,1585.9,6.36331861]
[1673988470011,19.02442593,1586.2,1585.9,0.06193713]
[1673988470233,20.11959731,1586.2,1585.8,3.0]
[1673988470844,12.61044,1586.0,1585.7,0.06193713]
[1673988471049,12.67644,1586.0,1585.6,12.67659356]
[1673988474313,6.3712,1586.0,1585.6,12.67659356]
[1673988479725,6.3712,1586.0,1585.6,12.67659356]
[1673988480159,6.3712,1586.0,1585.6,18.98335356]
[1673988480407,6.3712,1586.0,1585.6,21.17811577]
[1673988480584,6.3712,1586.0,1585.6,21.1783497]
[1673988481291,6.3712,1586.0,1585.6,18.98335356]
[1673988481924,15.04639777,1586.0,1585.6,18.98335356]
[1673988482191,22.76043414,1586.0,1585.6,6.37007356]
[1673988482353,0.93995777,1585.9,1585.6,0.06355356]
[1673988482552,12.61192,1585.8,1585.6,0.00161643]
[1673988482762,12.67792,1585.8,1585.6,0.00161643]
[1673988484242,6.37196,1585.8,1585.6,0.00161643]
[1673988489123,0.00073823,1585.6,1585.5,9.36703713]
[1673988489293,0.97373823,1585.6,1585.5,3.06193713]
[1673988489507,0.97373823,1585.6,1585.5,3.0]
[1673988490248,0.00073823,1585.6,1585.5,3.0]
[1673988491344,0.97373823,1585.6,1585.4,12.67649713]
[1673988491650,0.97373823,1585.6,1585.4,0.06193713]
[1673988491651,8.70750823,1585.6,1585.4,0.06193713]
[1673988491958,8.70750823,1585.6,1585.3,27.31303388]
[1673988491959,8.77350823,1585.6,1585.3,27.31303388]
[1673988492428,21.38703823,1585.6,1585.3,0.21211387]
[1673988492635,1.43,1585.5,1585.3,0.15017674]
[1673988492901,6.30755,1585.4,1585.3,0.15017674]
[1673988493066,6.37355,1585.4,1585.3,0.15017674]
[1673988493437,18.98865,1585.4,1585.3,0.15017674]
[1673988497588,20.41865,1585.4,1585.3,0.15017674]
[1673988498604,7.80355,1585.4,1585.3,0.15017674]
[1673988498811,6.37355,1585.4,1585.3,0.15017674]
[1673988501757,12.6811,1585.4,1585.3,0.15017674]
[1673988502760,6.37355,1585.4,1585.3,0.15017674]
[1673988502921,12.6811,1585.4,1585.3,0.15017674]
[1673988503917,20.41865,1585.4,1585.3,0.15017674]
[1673988504505,0.066,1585.4,1585.3,0.15017674]
[1673988504716,0.973,1585.4,1585.3,0.15017674]
[1673988504949,7.28055,1585.4,1585.3,0.15017674]
[1673988505123,13.6541,1585.4,1585.3,0.15017674]
[1673988505564,19.96165,1585.4,1585.3,0.15017674]
[1673988507223,21.39165,1585.4,1585.3,0.15017674]
[1673988507438,23.95761163,1585.4,1585.2,0.15411227]
[1673988507684,23.95761163,1585.4,1585.1,0.16597853]
[1673988507685,1.0,1585.2,1585.1,0.16597853]
[1673988507855,26.8934,1585.2,1585.1,0.16597853]
[1673988508082,26.9594,1585.2,1585.1,0.16597853]
[1673988511072,26.9594,1585.2,1585.1,0.2012058]
[1673988511289,26.96338828,1585.2,1585.1,0.2012058]
[1673988513691,20.42885408,1585.2,1585.1,0.2012058]
[1673988514316,6.37435,1585.2,1585.1,0.2012058]
[1673988515110,0.066,1585.2,1585.1,0.2012058]
[1673988515261,12.68166,1585.4,1585.1,1.1942058]
[1673988515471,12.68166,1585.4,1585.1,0.2012058]
[1673988516769,0.066,1585.4,1585.1,14.2486758]
[1673988516984,6.37323,1585.5,1585.1,14.31061293]
[1673988517296,6.37323,1585.5,1585.1,26.29611293]
[1673988518101,14.09738,1585.5,1585.1,0.26314293]
[1673988518310,21.34456777,1585.5,1585.1,0.2012058]
[1673988519322,18.92385,1585.3,1585.1,0.2012058]
[1673988519473,18.98985,1585.3,1585.1,0.2012058]
[1673988528536,19.92980777,1585.3,1585.1,0.2012058]
[1673988529381,21.35980777,1585.3,1585.1,0.2012058]
[1673988529596,19.86500777,1585.2,1585.1,0.2012058]
[1673988529798,19.93100777,1585.2,1585.1,0.2012058]
[1673988531002,22.05984637,1585.2,1585.1,0.2012058]
[1673988531157,22.99565181,1585.2,1585.1,0.1512058]
[1673988536853,27.24590696,1585.2,1585.1,0.12502079]
[1673988537067,24.89830425,1585.2,1585.1,0.12502079]
[1673988537241,25.09855299,1585.2,1585.1,0.12502079]
[1673988538610,28.09855299,1585.2,1585.1,0.12502079]
[1673988538840,31.08289743,1585.2,1585.1,0.12502079]
[1673988539691,28.73529472,1585.2,1585.1,0.12502079]
[1673988540560,31.08289743,1585.2,1585.1,0.12502079]
[1673988540876,28.73529472,1585.2,1585.1,0.12502079]
[1673988541034,29.20144862,1585.2,1585.1,0.12502079]
[1673988541508,28.56470689,1585.2,1585.1,0.12502079]
[1673988542089,27.88954486,1585.2,1585.1,0.12502079]
[1673988542349,30.43739631,1585.2,1585.1,0.12502079]
[1673988542923,28.0897936,1585.2,1585.1,0.12502079]
[1673988543661,24.53130628,1585.2,1585.1,0.12502079]
[1673988543978,24.34739631,1585.2,1585.1,0.12502079]
[1673988544206,21.79954486,1585.2,1585.1,0.12502079]
[1673988544552,21.3311071,1585.2,1585.1,0.12502079]
[1673988544770,23.4297936,1585.2,1585.1,0.12502079]
[1673988545076,24.65954486,1585.2,1585.1,0.12502079]
[1673988545300,30.436217,1585.2,1585.1,0.12502079]
[1673988545450,27.20702911,1585.2,1585.1,0.12502079]
[1673988545647,25.56470689,1585.2,1585.1,0.12502079]
[1673988546127,30.6662238,1585.2,1585.1,0.12502079]
[1673988546438,30.87427662,1585.2,1585.1,0.12502079]
[1673988546598,25.57251097,1585.2,1585.1,0.12502079]
[1673988546821,30.87431086,1585.2,1585.1,0.12502079]
[1673988547250,25.57251097,1585.2,1585.1,0.12502079]
[1673988547766,30.67413118,1585.2,1585.1,0.12502079]
[1673988547991,30.87437992,1585.2,1585.1,0.12502079]
[1673988548329,30.86691053,1585.2,1585.1,0.06896083]
[1673988548941,25.56504158,1585.2,1585.1,0.06896083]
[1673988549327,27.23671605,1585.2,1585.1,0.06896083]
[1673988549574,28.56504158,1585.2,1585.1,0.06896083]
[1673988549765,30.09670786,1585.2,1585.1,0.06896083]
[1673988550465,48.6038282,1585.2,1585.0,0.16263479]
[1673988550636,32.42492759,1585.1,1585.0,0.16263479]
[1673988550847,32.48698112,1585.1,1585.0,0.16263479]
[1673988551383,29.05671796,1585.1,1585.0,0.16263479]
[1673988551599,24.29008871,1585.1,1585.0,0.16263479]
[1673988551904,24.75818152,1585.1,1585.0,0.12877671]
[1673988552117,26.62946824,1585.1,1585.0,0.12877671]
[1673988552521,24.75818152,1585.1,1585.0,0.12877671]
[1673988553216,26.6289223,1585.1,1585.0,0.12877671]
[1673988554476,26.62889226,1585.1,1585.0,0.12877671]
[1673988554726,24.75818152,1585.1,1585.0,0.12877671]
[1673988554949,26.18818152,1585.1,1585.0,0.12877671]
[1673988555140,26.18818152,1585.1,1584.8,0.1845744]
[1673988555141,25.23816,1584.9,1584.8,0.1845744]
[1673988555357,25.23816,1584.9,1584.8,4.4e-06]
[1673988555358,28.36665666,1584.9,1584.8,4.4e-06]
[1673988555567,28.5669054,1584.9,1584.8,4.4e-06]
[1673988555784,26.669338,1584.9,1584.8,4.4e-06]
[1673988555966,26.46908926,1584.9,1584.8,4.4e-06]
[1673988556285,20.15954926,1584.9,1584.8,4.4e-06]
[1673988556474,18.99462,1584.9,1584.8,4.4e-06]
[1673988556945,0.066,1584.9,1584.8,4.4e-06]
[1673988557211,12.6847,1585.0,1584.8,4.4e-06]
[1673988557460,14.8917,1585.0,1584.8,4.4e-06]
[1673988557630,1.87068909,1584.9,1584.8,4.4e-06]
[1673988557844,17.89367185,1584.9,1584.8,4.4e-06]
[1673988558053,18.20039993,1584.9,1584.8,4.4e-06]
[1673988558324,18.20039993,1584.9,1584.7,0.18498376]
[1673988558325,24.45418065,1584.9,1584.7,0.18298816]
[1673988558472,22.58297968,1584.8,1584.7,0.18298816]
[1673988558677,26.29338787,1584.8,1584.7,0.18298816]
[1673988558924,28.09952646,1584.8,1584.7,0.18298816]
[1673988559135,24.59952646,1584.8,1584.7,0.18298816]
[1673988559372,24.59952646,1584.8,1584.3,0.10301292]
[1673988559373,1.0,1584.7,1584.3,0.10301292]
[1673988559594,1.0,1584.7,1583.8,5.31777862]
[1673988559595,1.0,1584.7,1584.1,0.066]
[1673988559596,24.33651414,1584.4,1584.1,0.066]
[1673988559908,24.33651414,1584.4,1583.5,8.3247]
[1673988559909,24.33651414,1584.4,1583.5,0.052]
[1673988559910,9.5811,1583.8,1583.5,0.052]
[1673988560092,9.5811,1583.8,1582.6,1.1051162]
[1673988560093,6.614,1583.3,1582.6,1.1051162]
[1673988560303,0.99977942,1583.3,1582.6,1.0751162]
[1673988560473,0.99977942,1583.3,1582.6,1.68362459]
[1673988560474,0.93377942,1583.1,1582.6,1.68362459]
[1673988560687,1.40066913,1583.2,1582.6,1.68362459]
[1673988560688,9.72900001,1583.0,1582.6,1.68362459]
[1673988560923,9.79500001,1583.0,1582.8,1.43]
[1673988561154,9.79500001,1583.0,1582.9,1.95675806]
[1673988561379,9.79500001,1583.0,1582.9,2.90048351]
[1673988561534,9.79500001,1583.0,1582.9,1.43]
[1673988561750,9.60028653,1583.0,1582.9,1.43]
[1673988562153,6.37475,1583.6,1582.9,12.474]
[1673988562154,0.06,1583.6,1582.9,12.474]
[1673988562360,2.9671,1583.8,1583.0,9.596]
[1673988562564,2.9671,1583.8,1583.0,17.14376065]
[1673988562830,2.9671,1583.8,1583.0,23.46065065]
[1673988563020,2.9671,1583.8,1583.5,1.43]
[1673988563952,2.9671,1583.8,1583.4,1.43]
[1673988564142,9.28114,1583.8,1583.3,1.496]
[1673988564358,9.28114,1583.8,1583.3,1.43]
[1673988564359,9.34714,1583.8,1583.3,1.43]
[1673988564620,9.34714,1583.8,1583.4,1.43]
[1673988564621,3.0331,1583.8,1583.4,1.43]
[1673988564940,9.28113,1583.8,1583.4,1.43]
[1673988565092,9.34713,1583.8,1583.2,0.066]
[1673988565308,9.34713,1583.8,1583.1,13.8899]
[1673988565771,6.32238408,1583.7,1583.1,13.8899]
[1673988565950,13.33970581,1583.7,1583.1,12.4599]
[1673988566162,6.3156,1583.4,1583.1,12.4599]
[1673988566408,6.3816,1583.4,1583.1,12.4599]
[1673988567141,6.3816,1583.4,1583.1,0.066]
[1673988567142,7.8116,1583.4,1583.1,0.066]
[1673988567298,7.8116,1583.4,1582.6,14.7879162]
[1673988567299,12.63264,1583.2,1582.6,14.7879162]
[1673988567502,6.38232,1583.2,1582.6,14.8539162]
[1673988567714,0.066,1583.2,1582.7,1.43]
[1673988567986,6.38980408,1583.3,1582.7,1.43]
[1673988568508,6.38980408,1583.3,1582.6,14.8539162]
[1673988568509,0.23,1583.2,1582.6,14.8539162]
[1673988568666,12.64166408,1583.1,1582.6,13.4279162]
[1673988568874,12.70766408,1583.1,1582.6,13.4279162]
[1673988569380,6.39063408,1583.1,1582.6,14.8579162]
[1673988570069,0.07380408,1583.1,1582.6,14.8579162]
[1673988570281,0.066,1583.2,1582.8,1.43]
[1673988570532,0.066,1583.5,1583.1,1.43]
[1673988570723,6.31455,1583.7,1583.1,1.43]
[1673988570724,6.38055,1583.7,1583.2,0.01539185]
[1673988571439,6.38055,1583.7,1583.4,1.43]
[1673988571440,16.57847245,1583.6,1583.4,1.43]
[1673988571647,16.57847245,1583.6,1583.5,1.43]
[1673988571648,16.64447245,1583.6,1583.5,1.43]
[1673988572296,16.64447245,1583.6,1583.3,1.43]
[1673988572549,9.63552238,1583.5,1583.3,1.43]
[1673988572699,9.70152238,1583.5,1583.4,1.43]
[1673988572906,0.066,1583.5,1583.4,1.43]
[1673988573237,6.31423,1583.8,1583.4,1.43]
[1673988573450,6.38023,1583.8,1583.5,1.429]
[1673988574307,12.69446,1583.8,1583.3,1.43]
[1673988576945,6.38023,1583.8,1583.3,1.43]
[1673988577133,12.69415,1583.8,1583.3,1.43]
[1673988577792,6.37992,1583.8,1583.3,1.43]
[1673988577946,6.37992,1583.8,1583.3,7.74589]
[1673988578162,6.37992,1583.8,1583.3,7.81189]
[1673988578528,0.066,1583.8,1583.4,1.425]
[1673988578742,0.066,1583.8,1583.3,0.066]
[1673988578743,12.62803,1583.8,1583.3,1.43]
[1673988578898,12.69403,1583.8,1583.3,1.43]
[1673988579525,0.066,1583.8,1583.3,14.06138]
[1673988579736,0.002,1583.8,1583.3,14.12538]
[1673988579961,6.38759408,1583.9,1583.3,14.12738]
[1673988580821,6.38759408,1583.9,1583.4,1.43]
[1673988581050,6.38759408,1583.9,1583.4,7.74543]
[1673988581374,6.38759408,1583.9,1583.4,7.81143]
[1673988581943,0.07380408,1583.9,1583.5,0.00247408]
[1673988582154,0.00780408,1583.9,1583.5,6.31756408]
[1673988582479,0.00780408,1583.9,1583.5,6.38356408]
[1673988583561,0.00780408,1583.9,1583.5,7.38356408]
[1673988583785,6.49572216,1584.0,1583.7,1.426]
[1673988583786,0.18243216,1584.0,1583.7,1.426]
[1673988584108,0.11643216,1584.0,1583.8,1.417]
[1673988584278,0.11843216,1584.0,1583.8,1.417]
[1673988584462,0.11643216,1584.0,1583.8,1.417]
[1673988584936,0.11643216,1584.0,1583.7,1.426]
[1673988585529,0.11643216,1584.0,1583.7,1.42210292]
[1673988585790,0.82843216,1584.0,1583.7,1.42210292]
[1673988588147,0.82843216,1584.0,1583.9,1.43]
[1673988593329,0.82843216,1584.0,1583.9,21.80056]
[1673988593539,0.82843216,1584.0,1583.9,24.86656]
[1673988599364,0.82843216,1584.0,1583.9,18.55304]
[1673988599663,0.82843216,1584.0,1583.9,24.86656]
[1673988600245,0.82843216,1584.0,1583.9,21.86656]
[1673988600612,7.14156216,1584.0,1583.9,0.066]
[1673988600924,7.14156216,1584.0,1583.8,7.74372]
[1673988600925,0.89443216,1584.0,1583.8,7.74372]
[1673988601134,0.82843216,1584.0,1583.8,7.80972]
[1673988601352,7.14163216,1584.0,1583.8,0.066]
[1673988601520,13.52083216,1584.0,1583.7,12.1307]
[1673988601867,13.52083216,1584.0,1583.7,13.5607]
[1673988601868,19.83403216,1584.0,1583.7,13.5607]
[1673988602296,1.0,1583.9,1583.7,13.5607]
[1673988602605,18.94928408,1583.9,1583.7,12.1307]
[1673988602817,19.01528408,1583.9,1583.7,12.1307]
[1673988603389,19.01528408,1583.9,1583.7,0.066]
[1673988603660,0.06849354,1583.6,1583.3,0.066]
[1673988603812,0.06849354,1583.6,1583.2,12.8172]
[1673988604025,0.06849354,1583.6,1583.3,1.43]
[1673988604622,12.62954,1583.6,1583.2,14.2372]
[1673988604762,0.066,1583.6,1583.2,14.2372]
[1673988605093,6.38829408,1583.7,1583.2,14.2372]
[1673988605444,0.07380408,1583.7,1583.3,7.73288]
[1673988605632,0.00780408,1583.7,1583.3,7.79888]
[1673988606245,0.00980408,1583.7,1583.3,7.79688]
[1673988606466,0.00980408,1583.7,1583.3,6.38188]
[1673988606467,0.00780408,1583.7,1583.3,6.38188]
[1673988606680,0.00780408,1583.7,1583.3,0.066]
[1673988606681,6.55212408,1583.7,1583.3,0.066]
[1673988606919,12.93244408,1583.7,1583.2,12.8172]
[1673988607305,13.8662235,1583.7,1583.2,0.066]
[1673988607551,15.2962235,1583.7,1583.0,18.92268007]
[1673988607717,15.2962235,1583.7,1583.1,3.0]
[1673988608249,1.0,1583.6,1583.1,3.0]
[1673988608608,12.86061,1583.5,1583.1,3.0]
[1673988608910,12.92661,1583.5,1583.1,3.0]
[1673988609065,6.61129,1583.5,1583.1,3.0]
[1673988609275,0.066,1583.5,1583.1,15.63335]
[1673988609540,0.066,1583.8,1583.4,7.73752]
[1673988609755,7.31358942,1583.9,1583.4,7.80352]
[1673988609968,6.37981,1583.9,1583.4,14.11904]
[1673988610326,6.37981,1583.9,1583.4,1.488]
[1673988610580,0.82949943,1583.8,1583.3,10.7418]
[1673988610848,1.76328684,1583.8,1583.3,6.3818]
[1673988611064,18.94336,1583.7,1583.3,0.066]
[1673988611332,1.43,1583.6,1583.2,0.066]
[1673988611486,1.43,1583.6,1583.0,18.92275007]
[1673988611487,14.04732,1583.5,1583.0,18.92275007]
[1673988611694,19.01152,1583.5,1583.0,12.60587007]
[1673988611903,0.00780408,1583.4,1583.0,12.60587007]
[1673988612165,0.00780408,1583.4,1583.0,31.55713007]
[1673988612385,0.00780408,1583.4,1583.0,18.92291007]
[1673988612386,6.32340408,1583.4,1583.0,18.92291007]
[1673988612538,6.38940408,1583.4,1583.0,18.92291007]
[1673988612867,0.07380408,1583.4,1583.0,25.24002007]
[1673988613072,0.00780408,1583.4,1583.0,31.55713007]
[1673988613493,0.00780408,1583.4,1583.0,32.98713007]
[1673988613706,0.00780408,1583.4,1583.1,1.00239964]
[1673988613916,0.00780408,1583.4,1583.2,12.63264]
[1673988614128,0.00780408,1583.4,1583.2,12.69864]
[1673988614580,8.72154,1583.7,1583.2,19.01496]
[1673988614797,2.41480408,1583.7,1583.2,20.44496]
[1673988615116,2.34880408,1583.7,1583.2,20.44496]
[1673988615955,0.00780408,1583.7,1583.2,20.44496]
[1673988616753,12.63672408,1583.7,1583.2,6.38232]
[1673988616992,20.44631408,1583.7,1583.2,0.066]
[1673988617215,0.23,1583.6,1583.1,6.38509964]
[1673988617388,12.6305,1583.5,1583.1,6.38509964]
[1673988617605,12.6965,1583.5,1583.1,6.38509964]
[1673988619426,19.01182,1583.5,1583.1,0.066]
[1673988619642,1.66,1583.4,1583.0,0.28087007]
[1673988619780,1.66,1583.4,1583.0,0.21487007]
[1673988619781,20.365,1583.3,1583.0,0.21487007]
[1673988619995,0.23,1583.2,1583.0,0.21487007]
[1673988620262,12.86308,1583.2,1583.0,0.21487007]
[1673988620583,0.066,1583.2,1583.0,0.21487007]
[1673988620744,7.799,1583.3,1583.0,0.21487007]
[1673988621149,1.483,1583.3,1583.0,6.53193007]
[1673988621466,1.50280408,1583.4,1583.0,6.59793007]
[1673988621723,0.00780408,1583.4,1583.0,19.23215007]
[1673988625680,0.00425307,1583.4,1583.0,19.23215007]
[1673988626141,0.066,1583.6,1583.2,1.426]
[1673988626408,6.38026,1583.8,1583.3,18.94752]
[1673988626561,6.38026,1583.8,1583.4,1.43]
[1673988626562,0.066,1583.8,1583.4,1.43]
[1673988626935,13.40462,1584.0,1583.5,18.94512]
[1673988627141,14.34265249,1584.0,1583.5,19.01112]
[1673988627479,20.65604249,1584.0,1583.5,19.01112]
[1673988628555,20.65604249,1584.0,1583.5,0.066]
[1673988628556,22.08604249,1584.0,1583.5,0.066]
[1673988628769,22.08604249,1584.0,1583.4,6.38136]
[1673988628770,1.66,1583.9,1583.4,6.38136]
[1673988629151,12.63242307,1583.8,1583.4,6.38136]
[1673988629295,12.69842307,1583.8,1583.4,6.38136]
[1673988629851,0.23,1583.7,1583.4,6.38136]
[1673988630065,6.54435,1583.7,1583.4,6.38136]
[1673988630238,6.61035,1583.7,1583.4,6.38136]
[1673988630577,14.3547,1583.7,1583.4,0.064]
[1673988630783,20.66905,1583.7,1583.2,12.69827]
[1673988631344,21.60282942,1583.7,1583.2,6.3821]
[1673988632454,21.60282942,1583.7,1583.2,0.066]
[1673988632665,21.60282942,1583.7,1583.1,0.066]
[1673988632908,1.43,1583.5,1583.0,32.91332007]
[1673988633243,0.23,1583.4,1583.1,6.31667]
[1673988633393,0.23,1583.4,1583.1,12.69939]
[1673988634075,0.23,1583.4,1583.1,19.01611]
[1673988634257,6.31515,1583.5,1583.1,19.01611]
[1673988634473,6.38115,1583.5,1583.1,19.01611]
[1673988634698,0.066,1583.5,1583.1,19.01611]
[1673988634913,14.51693677,1583.6,1583.1,19.01611]
[1673988634914,20.89805677,1583.6,1583.1,19.01611]
[1673988635132,0.23,1583.5,1583.1,19.01611]
[1673988636444,0.00425307,1583.4,1583.1,6.38272]
[1673988636659,0.00425307,1583.4,1583.1,19.01616]
[1673988638231,0.00625307,1583.4,1583.1,19.01416]
[1673988638491,0.00425307,1583.4,1583.1,19.01616]
[1673988638651,0.0633,1583.5,1583.1,20.44616]
[1673988638879,0.0633,1583.5,1583.3,20.37776]
[1673988639095,0.0633,1583.5,1583.3,20.44376]
[1673988640476,0.0633,1583.5,1583.3,19.01376]
[1673988643284,0.0633,1583.5,1583.3,20.44376]
[1673988643764,0.0633,1583.5,1583.4,1.0]
[1673988644070,0.0633,1583.5,1583.4,18.94656]
[1673988644383,0.0633,1583.5,1583.4,19.01256]
[1673988647225,0.05946912,1583.5,1583.4,21.87156]
[1673988647542,0.05946912,1583.5,1583.4,24.87156]
[1673988649911,0.05946912,1583.5,1583.4,21.87156]
[1673988650125,0.05946912,1583.5,1583.4,6.38152]
[1673988651795,1.05672219,1583.5,1583.4,0.066]
[1673988652005,1.05672219,1583.5,1583.2,25.21694]
[1673988652006,1.28672219,1583.5,1583.2,25.21694]
[1673988652331,1.28672219,1583.5,1583.2,31.53305]
[1673988653212,0.05946912,1583.5,1583.2,31.53305]
[1673988653361,0.05946912,1583.5,1583.2,32.95305]
[1673988654624,0.05946912,1583.5,1583.4,1.43]
[1673988654930,0.05946912,1583.5,1583.4,26.69208]
[1673988655146,0.05946912,1583.5,1583.4,26.75808]
[1673988655780,0.05946912,1583.5,1583.4,29.75808]
[1673988657780,0.05946912,1583.5,1583.4,28.32808]
[1673988658093,0.05946912,1583.5,1583.4,29.75808]
[1673988660322,0.05946912,1583.5,1583.4,28.32808]
[1673988660533,0.05946912,1583.5,1583.4,25.32808]
[1673988660796,0.05946912,1583.5,1583.4,25.32608]
[1673988661013,0.05946912,1583.5,1583.4,25.32808]
[1673988661795,0.05946912,1583.5,1583.4,19.01256]
[1673988662264,1.05246912,1583.5,1583.4,19.01256]
[1673988662474,1.05246912,1583.5,1583.0,8.89121915]
[1673988662475,1.0,1583.4,1583.0,6.53198007]
[1673988662667,3.34938186,1583.3,1583.0,0.28087007]
[1673988662895,1.43,1583.1,1583.0,0.21487007]
[1673988663096,1.66,1583.1,1583.0,0.21487007]
[1673988666648,1.66,1583.1,1583.0,6.53198007]
[1673988666859,0.23,1583.1,1583.0,6.59798007]
[1673988667561,0.23,1583.1,1583.0,12.91509007]
[1673988668226,1.75963493,1583.3,1583.0,19.23220007]
[1673988668484,0.54,1583.1,1583.0,19.23220007]
[1673988670540,0.54,1583.1,1583.0,20.66220007]
[1673988671630,0.54,1583.1,1583.0,20.50620007]
[1673988672000,0.54,1583.1,1583.0,19.23220007]
[1673988675320,0.39,1583.1,1583.0,19.23220007]
[1673988678714,0.44946912,1583.1,1583.0,19.23220007]
[1673988692273,0.44946912,1583.1,1583.0,19.59842966]
[1673988695384,0.44946912,1583.1,1583.0,19.23220007]
[1673988695969,0.45146912,1583.1,1583.0,19.23020007]
[1673988696119,0.44946912,1583.1,1583.0,19.23220007]
[1673988696330,0.45146912,1583.1,1583.0,19.23020007]
[1673988696575,0.44946912,1583.1,1583.0,19.23890195]
[1673988698378,0.44946912,1583.1,1583.0,18.98890195]
[1673988698569,0.44946912,1583.1,1583.0,19.35545042]
[1673988698748,0.44946912,1583.1,1583.0,19.35547865]
[1673988699846,0.44946912,1583.1,1583.0,18.98890195]
[1673988700336,0.44946912,1583.1,1583.0,18.93890195]
[1673988700967,0.44946912,1583.1,1583.0,18.93220007]
[1673988701741,0.44946912,1583.1,1583.0,18.88220007]
[1673988704473,0.44946912,1583.1,1583.0,19.24903521]
[1673988706312,0.44946912,1583.1,1583.0,20.19287849]
[1673988706676,0.44946912,1583.1,1583.0,23.04227429]
[1673988706841,0.44946912,1583.1,1583.0,22.09843101]
[1673988707412,0.44946912,1583.1,1583.0,21.34551594]
[1673988707995,0.44946912,1583.1,1583.0,21.33151594]